bitfinex/quotes_SOLUSD_20250401
["timestamp","ask_amount","ask_price","bid_price","bid_amount"]
[1743522586906,7.7154,129.61,129.56,37.7184]
[1743522588121,7.7154,129.61,129.56,30.0]
[1743522588425,7.7154,129.61,129.55,7.719]
[1743522589339,7.7154,129.61,129.54,27.0175]
[1743522589538,7.7154,129.61,129.55,30.0]
[1743522590114,7.7448,129.62,129.55,30.0]
[1743522591140,0.03,129.62,129.58,20.0]
[1743522591323,0.03,129.62,129.59,8.68]
[1743522591828,0.03,129.62,129.61,20.0]
[1743522592743,89.4114,129.68,129.62,20.0]
[1743522594051,81.98432314,129.67,129.59,8.68]
[1743522594229,81.98432314,129.67,129.61,30.0]
[1743522594629,0.28432314,129.65,129.61,30.0]
[1743522594840,10.41442314,129.65,129.61,30.0]
[1743522595145,5.2825,129.64,129.61,30.0]
[1743522595747,7.7142,129.63,129.61,30.0]
[1743522596350,7.7142,129.63,129.59,8.68]
[1743522598550,7.7138,129.64,129.59,16.3965]
[1743522599645,7.713,129.65,129.59,16.3965]
[1743522600255,89.4126,129.66,129.59,16.3965]
[1743522600431,81.7,129.66,129.62,20.0]
[1743522600747,0.03,129.67,129.63,20.0]
[1743522600959,0.03,129.67,129.66,20.0]
[1743522601847,0.03,129.67,129.66,27.7124]
[1743522602235,0.03,129.67,129.66,20.0]
[1743522603028,0.03,129.67,129.64,241.2683]
[1743522603223,0.03,129.67,129.64,238.6336]
[1743522603648,0.03,129.67,129.66,27.7124]
[1743522605253,0.03,129.67,129.66,20.0]
[1743522606142,0.03,129.67,129.66,27.7124]
[1743522606853,0.03,129.67,129.66,20.0]
[1743522608045,0.03,129.67,129.66,27.7124]
[1743522608355,0.03,129.71,129.7,20.0]
[1743522608555,0.03,129.71,129.7,47.30964886]
[1743522608756,0.03,129.75,129.7,47.30964886]
[1743522608960,0.03,129.78,129.74,20.0]
[1743522609138,0.03,129.78,129.75,8.66]
[1743522609332,0.03,129.78,129.77,20.0]
[1743522610157,0.03,129.78,129.75,8.66]
[1743522612248,0.03,129.78,129.75,16.367]
[1743522613053,0.03,129.78,129.75,8.66]
[1743522613760,0.03,129.78,129.75,16.367]
[1743522614760,0.03,129.78,129.77,20.0]
[1743522616460,0.03,129.78,129.75,8.66]
[1743522618660,0.03,129.78,129.75,7.7071]
[1743522619546,0.03,129.78,129.74,230.8]
[1743522622180,0.03,129.78,129.74,238.5706]
[1743522622362,0.03,129.78,129.74,230.863]
[1743522622669,0.03,129.78,129.74,222.203]
[1743522622878,3.8525,129.76,129.74,0.063]
[1743522623062,7.7071,129.75,129.74,0.063]
[1743522626648,93.2592,129.76,129.74,0.063]
[1743522629178,81.98432314,129.75,129.74,0.063]
[1743522629759,81.98432314,129.75,129.68,8.66]
[1743522629966,7.7083,129.73,129.68,8.66]
[1743522630473,7.7083,129.73,129.67,238.3715]
[1743522631055,81.7,129.74,129.67,257.6512]
[1743522631279,7.7071,129.75,129.7,20.0]
[1743522631973,11.559,129.76,129.71,7.7095]
[1743522632178,0.03,129.78,129.72,8.66]
[1743522632375,0.03,129.78,129.75,20.0]
[1743522633978,7.7354,129.78,129.75,20.0]
[1743522634167,0.03,129.78,129.75,20.0]
[1743522636284,0.03,129.78,129.75,27.7068]
[1743522636484,0.03,129.78,129.76,18.64964886]
[1743522636668,0.03,129.78,129.77,8.66]
[1743522638286,0.03,129.78,129.75,8.64]
[1743522638471,0.03,129.78,129.76,20.0]
[1743522638785,0.03,129.78,129.75,8.64]
[1743522642374,3.1674,129.77,129.71,0.063]
[1743522642573,3.1674,129.77,129.71,8.703]
[1743522643094,3.1674,129.77,129.71,16.4124]
[1743522643970,3.1674,129.77,129.72,8.64]
[1743522644372,7.7065,129.76,129.72,8.64]
[1743522644579,26.9728,129.76,129.71,8.703]
[1743522645493,7.7065,129.76,129.71,8.703]
[1743522646063,7.7065,129.76,129.71,0.063]
[1743522646269,26.9728,129.76,129.71,0.063]
[1743522648089,7.7065,129.76,129.71,0.063]
[1743522648290,10.9035,129.77,129.71,20.063]
[1743522648794,3.1974,129.77,129.71,27.7722]
[1743522649367,10.9035,129.77,129.71,27.7722]
[1743522650187,10.9035,129.77,129.71,20.063]
[1743522650389,0.28432314,129.76,129.71,0.063]
[1743522650704,26.9749,129.75,129.71,0.063]
[1743522652384,7.7071,129.75,129.71,0.063]
[1743522652796,7.7065,129.76,129.71,0.063]
[1743522653293,26.9728,129.76,129.71,0.063]
[1743522653793,0.28432314,129.75,129.71,0.063]
[1743522653994,3.0637,129.74,129.71,0.063]
[1743522654294,0.28432314,129.73,129.71,0.063]
[1743522654494,81.98432314,129.73,129.71,0.063]
[1743522654698,6.5306,129.72,129.71,0.063]
[1743522654993,14.2395,129.72,129.71,0.063]
[1743522655403,6.5306,129.72,129.71,0.063]
[1743522655775,7.7085,129.73,129.71,0.063]
[1743522656897,10.7716,129.74,129.71,0.063]
[1743522657995,3.0913,129.77,129.71,0.063]
[1743522658178,3.0913,129.77,129.71,18.71264886]
[1743522658179,0.03,129.77,129.71,18.71264886]
[1743522658380,0.03,129.77,129.74,20.0]
[1743522658600,0.03,129.77,129.75,8.64]
[1743522658799,0.03,129.77,129.76,7.7065]
[1743522659801,0.03,129.77,129.75,8.64]
[1743522661471,0.03,129.77,129.72,8.64]
[1743522663382,0.03,129.77,129.73,7.7083]
[1743522664183,0.03,129.77,129.76,20.0]
[1743522666089,0.03,129.77,129.76,27.7065]
[1743522666298,0.03,129.77,129.73,7.708]
[1743522666498,0.03,129.77,129.73,8.64]
[1743522666783,1.6045,129.76,129.73,8.64]
[1743522668214,1.6045,129.76,129.73,16.3482]
[1743522668721,1.6045,129.76,129.73,8.64]
[1743522669503,1.6045,129.76,129.73,16.3482]
[1743522671484,1.6045,129.76,129.74,18.64964886]
[1743522672302,1.6045,129.76,129.73,8.64]
[1743522672721,1.6045,129.76,129.73,16.3482]
[1743522673083,9.3111,129.76,129.72,0.063]
[1743522673289,28.5774,129.76,129.72,0.063]
[1743522673611,35.105,129.76,129.72,0.063]
[1743522673786,2.00602314,129.75,129.72,0.063]
[1743522674606,1.7217,129.75,129.72,0.063]
[1743522676202,9.4289,129.75,129.72,0.063]
[1743522676709,1.7217,129.75,129.72,0.063]
[1743522676911,9.4289,129.75,129.72,0.063]
[1743522677514,28.6967,129.75,129.72,0.063]
[1743522679312,83.73552314,129.74,129.72,0.0001]
[1743522679516,1.7512,129.72,129.63,230.6]
[1743522679812,7.7095,129.71,129.63,238.3141]
[1743522680029,26.9832,129.71,129.63,230.6]
[1743522680394,26.9832,129.71,129.63,238.3141]
[1743522680888,7.7095,129.71,129.66,20.0]
[1743522681089,9.4601,129.72,129.66,20.0]
[1743522681501,9.4601,129.72,129.67,20.0]
[1743522681502,1.7512,129.72,129.67,20.0]
[1743522681784,9.4602,129.72,129.68,8.64]
[1743522682892,28.7324,129.72,129.68,8.64]
[1743522683719,28.7324,129.72,129.65,8.62]
[1743522684724,28.7324,129.72,129.65,16.333]
[1743522685113,9.4602,129.72,129.65,16.333]
[1743522685619,1.7512,129.72,129.65,35.6156]
[1743522685805,1.7512,129.72,129.66,18.64964886]
[1743522686013,1.7512,129.72,129.65,8.62]
[1743522686215,9.4601,129.72,129.65,8.62]
[1743522686524,0.28432314,129.71,129.63,222.043]
[1743522686818,89.5517,129.7,129.63,222.043]
[1743522687009,81.7,129.69,129.63,229.7572]
[1743522687211,81.7,129.69,129.63,222.043]
[1743522687415,83.4328,129.68,129.63,230.663]
[1743522687722,81.7,129.67,129.63,230.663]
[1743522687923,7.7124,129.66,129.63,222.043]
[1743522688220,7.7124,129.66,129.63,0.063]
[1743522688423,89.412,129.67,129.63,0.063]
[1743522689502,81.7,129.67,129.63,0.063]
[1743522690011,89.4119,129.67,129.63,0.063]
[1743522690211,81.7,129.67,129.63,0.063]
[1743522691926,1.7328,129.68,129.63,0.063]
[1743522692630,1.7328,129.68,129.63,18.71264886]
[1743522693225,1.7328,129.68,129.63,0.063]
[1743522694733,9.4441,129.68,129.63,0.063]
[1743522694941,6.2034,129.67,129.63,0.063]
[1743522695511,1.5279,129.66,129.63,0.063]
[1743522696636,89.413,129.65,129.63,0.063]
[1743522698425,81.7,129.65,129.63,0.063]
[1743522698935,1.5279,129.66,129.63,0.063]
[1743522699111,9.2405,129.66,129.63,0.063]
[1743522703454,90.9405,129.66,129.63,0.063]
[1743522704247,81.7,129.65,129.63,0.063]
[1743522704549,1.5068,129.64,129.63,0.063]
[1743522704947,20.0,129.63,129.62,0.063]
[1743522705443,27.7142,129.63,129.62,0.063]
[1743522706359,7.7142,129.63,129.62,0.063]
[1743522707065,9.2207,129.64,129.62,0.063]
[1743522707850,81.7,129.63,129.62,0.063]
[1743522709137,89.4142,129.63,129.62,0.063]
[1743522710670,89.85212314,129.62,129.59,0.063]
[1743522710834,1.5925,129.6,129.59,0.063]
[1743522711036,1.87682314,129.6,129.59,0.063]
[1743522711252,20.28432314,129.59,129.58,0.0001]
[1743522711556,1.5925,129.6,129.58,0.0001]
[1743522712547,7.7166,129.59,129.58,0.0001]
[1743522713434,1.5925,129.6,129.58,0.0001]
[1743522713634,9.3087,129.6,129.58,0.0001]
[1743522718767,0.28432314,129.58,129.55,0.063]
[1743522718945,1.6657,129.56,129.55,0.063]
[1743522719969,1.80786157,129.56,129.55,0.063]
[1743522720156,1.95002314,129.56,129.55,0.063]
[1743522720565,1.95002314,129.56,129.51,0.063]
[1743522720566,1.86262314,129.52,129.51,0.063]
[1743522720869,9.2991,129.52,129.51,0.063]
[1743522725066,1.5783,129.52,129.51,0.063]
[1743522725461,1.5783,129.52,129.51,8.683]
[1743522725662,81.7,129.55,129.51,8.683]
[1743522725663,83.3602,129.55,129.51,8.683]
[1743522725978,1.6602,129.55,129.51,8.683]
[1743522726478,1.6602,129.55,129.52,26.37044886]
[1743522727377,1.6602,129.55,129.51,7.7841]
[1743522727674,1.6602,129.55,129.52,8.62]
[1743522728359,1.6602,129.55,129.52,27.26964886]
[1743522728560,1.6602,129.55,129.54,7.7196]
[1743522729177,1.5721,129.59,129.54,7.7196]
[1743522730182,1.5721,129.59,129.52,8.62]
[1743522730681,1.6168,129.56,129.52,8.62]
[1743522731564,83.3168,129.56,129.51,0.063]
[1743522732278,20.0,129.52,129.51,0.063]
[1743522732482,81.7,129.53,129.51,0.063]
[1743522732653,7.7208,129.52,129.51,0.063]
[1743522733057,29.62512314,129.52,129.51,0.063]
[1743522734177,29.3408,129.52,129.51,0.063]
[1743522734365,9.3408,129.52,129.51,0.063]
[1743522734567,9.3408,129.52,129.5,0.021739]
[1743522735578,8.83151408,129.52,129.5,0.021739]
[1743522743367,1.5335,129.55,129.5,18.67138786]
[1743522743567,1.5335,129.55,129.52,18.64964886]
[1743522744272,1.5335,129.55,129.51,8.62]
[1743522744579,0.063,129.52,129.51,8.62]
[1743522744783,0.063,129.52,129.5,0.021739]
[1743522745574,1.5067,129.51,129.5,0.021739]
[1743522745766,21.5067,129.51,129.5,0.021739]
[1743522747170,21.79102314,129.51,129.5,0.021739]
[1743522747371,29.51242314,129.51,129.5,0.021739]
[1743522749485,29.51242314,129.51,129.49,0.063]
[1743522749486,7.97292314,129.5,129.49,0.063]
[1743522749989,3.89832118,129.5,129.49,0.063]
[1743522750183,3.89832118,129.5,129.46,0.03]
[1743522750385,136.44964886,129.49,129.46,0.03]
[1743522750589,117.8,129.49,129.46,0.03]
[1743522750802,18.64964886,129.48,129.46,0.03]
[1743522751180,20.0,129.47,129.46,0.03]
[1743522751368,27.7237,129.47,129.46,0.03]
[1743522751973,18.64964886,129.46,129.44,0.063]
[1743522752171,20.28432314,129.43,129.42,0.063]
[1743522752580,38.933972,129.43,129.42,0.063]
[1743522752786,38.933972,129.43,129.39,0.063]
[1743522753091,20.0,129.4,129.39,0.063]
[1743522753589,28.01222314,129.4,129.39,0.063]
[1743522754184,0.28432314,129.39,129.31,0.063]
[1743522754383,48.262172,129.4,129.31,0.063]
[1743522754384,1.6003,129.38,129.31,7.796]
[1743522754582,27.7279,129.4,129.33,18.64964886]
[1743522754797,27.7279,129.4,129.34,8.62]
[1743522755174,119.4003,129.42,129.34,8.62]
[1743522755485,9.3272,129.42,129.35,26.38024886]
[1743522756075,9.3272,129.42,129.35,18.64964886]
[1743522756577,81.7,129.41,129.34,8.62]
[1743522757094,81.7,129.4,129.35,0.03]
[1743522757299,0.14216157,129.39,129.35,0.03]
[1743522757473,7.7291,129.38,129.35,0.03]
[1743522758997,7.7287,129.39,129.35,0.03]
[1743522759187,20.0,129.36,129.35,0.03]
[1743522759387,81.7,129.38,129.35,0.03]
[1743522759594,7.7297,129.37,129.35,0.03]
[1743522759901,89.4292,129.38,129.35,0.03]
[1743522760397,81.7,129.38,129.35,8.65]
[1743522760774,7.728,129.4,129.35,8.65]
[1743522760994,7.7274,129.41,129.35,8.65]
[1743522761303,7.7274,129.41,129.36,18.64964886]
[1743522762293,9.3272,129.42,129.37,6.3346]
[1743522762497,9.327,129.42,129.38,18.64964886]
[1743522762698,1.6003,129.42,129.38,18.64964886]
[1743522762897,9.327,129.42,129.38,18.64964886]
[1743522763699,1.6003,129.42,129.38,18.64964886]
[1743522763899,1.6003,129.42,129.38,26.37824886]
[1743522765217,9.327,129.42,129.38,18.64964886]
[1743522765509,1.6003,129.42,129.38,26.37864886]
[1743522765824,9.3274,129.42,129.38,18.64964886]
[1743522767604,9.3274,129.42,129.36,18.64964886]
[1743522767806,28.6443,129.42,129.35,8.65]
[1743522768009,28.6443,129.42,129.36,18.64964886]
[1743522768813,28.6443,129.42,129.37,8.62]
[1743522769310,28.6443,129.42,129.36,18.64964886]
[1743522769515,28.6443,129.42,129.37,8.62]
[1743522770018,28.7073,129.42,129.37,8.62]
[1743522771500,81.7,129.41,129.37,8.62]
[1743522771895,7.7279,129.4,129.36,0.03]
[1743522778922,27.0478,129.4,129.36,0.03]
[1743522780122,33.1579,129.4,129.36,0.03]
[1743522781427,13.838,129.4,129.36,0.03]
[1743522782114,7.7279,129.4,129.36,0.03]
[1743522783123,27.0478,129.4,129.36,0.03]
[1743522786131,1.5789,129.39,129.36,0.03]
[1743522787411,7.7291,129.38,129.36,0.03]
[1743522787620,1.5789,129.39,129.36,0.03]
[1743522788736,9.3827,129.42,129.36,0.03]
[1743522789417,1.6557,129.42,129.36,18.963972]
[1743522790022,9.3825,129.42,129.36,18.963972]
[1743522790524,9.3826,129.42,129.36,18.963972]
[1743522790842,1.6557,129.42,129.36,18.963972]
[1743522791029,9.3825,129.42,129.36,18.963972]
[1743522791418,9.3825,129.42,129.38,18.933972]
[1743522791419,0.063,129.42,129.38,18.933972]
[1743522791618,0.063,129.42,129.41,0.28432314]
[1743522791823,0.063,129.42,129.41,25.511572]
[1743522792240,0.063,129.42,129.41,25.22724886]
[1743522792733,0.063,129.42,129.41,25.511572]
[1743522793122,0.063,129.43,129.42,38.933972]
[1743522793529,0.063,129.43,129.42,269.280672]
[1743522794637,0.063,129.43,129.42,249.280672]
[1743522794827,0.063,129.43,129.42,241.26964886]
[1743522795027,0.063,129.43,129.42,249.86964886]
[1743522797324,0.063,129.43,129.42,231.22]
[1743522798817,0.063,129.43,129.42,249.86964886]
[1743522799853,0.063,129.43,129.42,257.59634886]
[1743522800225,0.063,129.43,129.42,257.880672]
[1743522803334,1.5048,129.48,129.45,20.0]
[1743522803534,1.5048,129.48,129.46,18.64964886]
[1743522803841,1.5048,129.48,129.47,27.24964886]
[1743522804429,9.228,129.48,129.47,8.6]
[1743522805030,9.228,129.48,129.42,222.62]
[1743522805343,28.536,129.48,129.42,231.2]
[1743522806132,7.7243,129.46,129.42,231.2]
[1743522806923,1.5722,129.45,129.42,231.2]
[1743522807544,1.5722,129.45,129.42,222.62]
[1743522808230,7.7255,129.44,129.42,222.62]
[1743522810447,9.2974,129.45,129.42,222.62]
[1743522811524,9.2974,129.45,129.41,0.03]
[1743522811842,1.5722,129.45,129.42,0.28432314]
[1743522812431,1.5722,129.45,129.44,18.64964886]
[1743522812631,1.5722,129.45,129.43,18.64964886]
[1743522812949,1.5722,129.45,129.42,18.34307286]
[1743522814728,1.5722,129.45,129.41,0.03]
[1743522814729,9.2972,129.45,129.41,0.03]
[1743522814922,9.2972,129.45,129.41,18.67964886]
[1743522815324,9.2972,129.45,129.42,8.58]
[1743522817443,1.5722,129.45,129.42,8.58]
[1743522817660,1.5722,129.45,129.42,16.3067]
[1743522817843,1.5722,129.45,129.42,8.58]
[1743522818534,1.6352,129.45,129.42,8.58]
[1743522821453,9.3603,129.45,129.42,8.58]
[1743522821931,9.3603,129.45,129.41,0.03]
[1743522827246,28.6727,129.45,129.41,0.03]
[1743522827451,6.0471,129.44,129.41,0.03]
[1743522828945,7.7261,129.43,129.41,0.03]
[1743522830962,81.7,129.42,129.41,0.03]
[1743522831153,83.3386,129.42,129.41,0.03]
[1743522831940,83.3386,129.42,129.37,222.54]
[1743522832149,81.7,129.41,129.37,222.54]
[1743522833276,7.7279,129.4,129.37,222.54]
[1743522835847,27.0478,129.4,129.37,222.54]
[1743522837141,7.577,129.39,129.36,0.03]
[1743522837345,81.7,129.38,129.36,0.03]
[1743522838265,89.4291,129.38,129.36,0.03]
[1743522842662,1.69866157,129.36,129.35,0.03]
[1743522842863,27.84456157,129.36,129.35,0.03]
[1743522843977,35.57486157,129.36,129.35,0.03]
[1743522844271,35.4327,129.36,129.35,0.03]
[1743522844450,29.2868,129.36,129.35,0.03]
[1743522845883,27.7315,129.34,129.31,0.063]
[1743522846750,47.0604,129.34,129.31,0.063]
[1743522848169,1.5239,129.33,129.31,0.063]
[1743522848659,88.06582314,129.32,129.31,0.063]
[1743522848873,95.79852314,129.32,129.31,0.0001]
[1743522849254,20.0,129.3,129.29,0.03]
[1743522851079,27.7339,129.3,129.29,0.03]
[1743522852663,89.3858,129.32,129.29,0.03]
[1743522852861,83.3043,129.32,129.29,0.03]
[1743522856985,91.0371,129.32,129.29,8.59]
[1743522858289,110.3689,129.32,129.29,0.03]
[1743522861086,20.0,129.3,129.29,0.03]
[1743522862386,7.7335,129.31,129.29,0.03]
[1743522865987,0.28432314,129.3,129.29,0.03]
[1743522866173,0.14216157,129.3,129.29,0.03]
[1743522866689,27.87606157,129.3,129.29,0.03]
[1743522867101,27.87606157,129.3,129.28,0.03]
[1743522868192,85.88056157,129.3,129.24,0.06338841]
[1743522868364,0.14216157,129.28,129.24,0.06338841]
[1743522868765,7.7357,129.27,129.24,0.06338841]
[1743522869791,27.075,129.27,129.24,0.06338841]
[1743522871015,7.7357,129.27,129.24,0.06338841]
[1743522873774,27.075,129.27,129.24,0.06338841]
[1743522874188,7.7357,129.27,129.24,0.06338841]
[1743522875184,27.21506157,129.28,129.24,0.06338841]
[1743522875695,27.0729,129.28,129.24,0.06338841]
[1743522876274,7.7351,129.28,129.24,0.06338841]
[1743522879511,27.0729,129.28,129.24,0.06338841]
[1743522879809,7.7351,129.28,129.24,0.06338841]
[1743522879992,90.9997,129.29,129.24,0.06338841]
[1743522882008,90.9997,129.29,129.25,8.56]
[1743522882205,81.7,129.29,129.25,8.56]
[1743522882419,0.063,129.32,129.26,18.79181043]
[1743522883479,0.063,129.32,129.28,18.64964886]
[1743522885197,0.063,129.32,129.29,0.14216157]
[1743522885486,0.063,129.32,129.31,26.38294886]
[1743522885931,0.063,129.32,129.31,26.52511043]
[1743522886225,0.063,129.32,129.31,249.487272]
[1743522886398,81.763,129.38,129.31,249.487272]
[1743522886399,0.063,129.38,129.34,20.0]
[1743522886598,0.063,129.38,129.35,8.82432314]
[1743522886912,0.063,129.38,129.36,18.64964886]
[1743522887088,0.063,129.38,129.31,230.5533]
[1743522887296,7.7923,129.38,129.32,27.18964886]
[1743522887495,0.063,129.38,129.33,18.79181043]
[1743522888017,0.063,129.38,129.33,0.14216157]
[1743522890295,0.063,129.38,129.36,20.0]
[1743522890500,0.063,129.38,129.37,8.54]
[1743522893597,0.063,129.38,129.36,8.54]
[1743522899119,0.063,129.38,129.34,18.64964886]
[1743522899306,0.063,129.38,129.36,8.54]
[1743522901707,0.063,129.38,129.37,18.79181043]
[1743522901916,0.063,129.38,129.37,18.933972]
[1743522902419,0.063,129.45,129.41,0.14216157]
[1743522902631,0.063,129.45,129.42,8.54]
[1743522903430,0.063,129.45,129.43,18.64964886]
[1743522903822,0.063,129.45,129.44,8.54]
[1743522906909,0.063,129.45,129.44,34.91514886]
[1743522907135,0.063,129.45,129.44,257.65731043]
[1743522907307,0.063,129.45,129.44,257.799472]
[1743522910021,0.063,129.45,129.44,241.39181043]
[1743522910223,0.063,129.45,129.44,249.91181043]
[1743522911516,0.063,129.45,129.44,250.053972]
[1743522917336,0.063,129.45,129.44,249.91181043]
[1743522919735,0.063,129.45,129.44,249.76964886]
[1743522919920,0.063,129.45,129.44,222.6]
[1743522920120,1.6523,129.45,129.44,222.6]
[1743522920833,9.3772,129.45,129.44,222.6]
[1743522928349,9.3772,129.45,129.38,11.70739276]
[1743522928350,28.6896,129.45,129.38,222.52]
[1743522928643,110.3896,129.45,129.38,231.04]
[1743522929047,91.0772,129.45,129.39,18.64964886]
[1743522929223,83.3523,129.45,129.4,0.14216157]
[1743522929427,1.6523,129.45,129.4,0.28432314]
[1743522929626,9.3773,129.45,129.4,8.01172314]
[1743522932055,9.3773,129.45,129.4,0.14216157]
[1743522932259,9.3773,129.45,129.4,18.64964886]
[1743522932452,1.6523,129.45,129.41,0.14216157]
[1743522932826,9.3773,129.45,129.41,0.14216157]
[1743522933024,9.3773,129.45,129.39,18.79181043]
[1743522934051,28.6897,129.45,129.39,18.79181043]
[1743522934347,28.6897,129.45,129.39,26.52021043]
[1743522934727,9.3773,129.45,129.39,26.52021043]
[1743522937148,1.6523,129.45,129.4,0.14216157]
[1743522937334,1.6523,129.45,129.42,20.0]
[1743522937532,1.6523,129.45,129.43,8.5]
[1743522938140,9.3773,129.45,129.43,8.5]
[1743522938652,9.3773,129.45,129.41,0.14216157]
[1743522938830,9.3773,129.45,129.4,0.14216157]
[1743522938831,9.3773,129.45,129.42,8.5]
[1743522940329,1.6523,129.45,129.42,8.5]
[1743522940529,1.6523,129.45,129.43,18.64964886]
[1743522940730,0.063,129.45,129.44,0.28432314]
[1743522941130,0.063,129.45,129.44,26.659472]
[1743522946868,0.063,129.45,129.44,35.159472]
[1743522955267,0.063,129.45,129.44,26.659472]
[1743522955483,0.063,129.45,129.44,35.159472]
[1743522955660,0.063,129.45,129.44,257.619472]
[1743522956057,0.063,129.45,129.44,230.96]
[1743522956576,0.063,129.45,129.44,222.46]
[1743522960474,0.063,129.45,129.44,249.119472]
[1743522962163,0.063,129.45,129.44,249.149472]
[1743522962960,0.0001,129.45,129.44,249.149472]
[1743522964252,0.0001,129.45,129.44,249.00731043]
[1743522965587,1.5831,129.45,129.44,249.61964886]
[1743522965786,1.5831,129.45,129.44,257.48731043]
[1743522967391,1.5831,129.45,129.44,222.49]
[1743522969650,9.308,129.45,129.44,222.49]
[1743522969846,9.308,129.45,129.41,18.64964886]
[1743522970067,1.5119,129.44,129.4,34.88754886]
[1743522970964,1.5119,129.44,129.41,0.28432314]
[1743522971669,1.5119,129.44,129.42,7.7267]
[1743522971979,1.5119,129.44,129.43,0.14216157]
[1743522974279,1.5119,129.44,129.4,27.15964886]
[1743522974570,1.5119,129.44,129.41,8.48]
[1743522974571,15.3047,129.44,129.41,8.48]
[1743522975252,15.3047,129.44,129.4,7.7579]
[1743522975471,15.3047,129.44,129.41,8.48]
[1743522975854,7.5791,129.44,129.41,8.48]
[1743522976264,7.5791,129.44,129.41,16.2073]
[1743522976463,1.5119,129.44,129.41,16.2073]
[1743522976960,1.5119,129.44,129.42,0.14216157]
[1743522977360,1.5119,129.44,129.41,8.48]
[1743522977971,1.5119,129.44,129.42,18.64964886]
[1743522978473,9.2375,129.44,129.42,18.64964886]
[1743522979278,1.5119,129.44,129.42,18.64964886]
[1743522980777,0.0001,129.45,129.43,0.28432314]
[1743522980983,0.0001,129.45,129.44,38.79181043]
[1743522981365,0.063,129.48,129.45,18.933972]
[1743522981556,0.0001,129.48,129.47,18.933972]
[1743522981766,0.063,129.51,129.5,18.933972]
[1743522981967,0.063,129.51,129.5,241.473972]
[1743522982467,0.0001,129.51,129.5,241.473972]
[1743522982669,0.0001,129.51,129.5,249.195972]
[1743522983486,0.0001,129.51,129.5,257.675972]
[1743522983979,0.0001,129.51,129.5,239.02632314]
[1743522984186,0.0001,129.51,129.5,249.953972]
[1743522984366,0.0001,129.51,129.5,249.81181043]
[1743522984786,0.0001,129.51,129.5,231.02]
[1743522985481,0.0001,129.51,129.5,222.54]
[1743522985688,7.7299,129.51,129.5,222.54]
[1743522986665,15.4513,129.51,129.5,222.54]
[1743522987060,15.4513,129.51,129.49,8.48]
[1743522987373,15.4513,129.51,129.45,8.48]
[1743522987568,34.7548,129.51,129.45,8.48]
[1743522987778,15.4513,129.51,129.45,8.48]
[1743522988265,34.7548,129.51,129.45,8.48]
[1743522991285,1.5405,129.47,129.44,230.92]
[1743522992762,7.7243,129.46,129.44,222.46]
[1743522994308,7.7115,129.45,129.44,222.46]
[1743522994806,15.4364,129.45,129.44,222.46]
[1743522995327,34.7488,129.45,129.41,8.49]
[1743522996690,15.4364,129.45,129.41,8.49]